Workbook

Sheet Inmatning, löner
B1: LÖNEKALKYLATOR | K1: PERIOD SOM SLUTAR: | L1: 41372 | N1: FÖRETAGSNAMN: | P1: ADVENTURE WORKS
B3: ID | C3: Anställds namn | D3: Arbetade timmar, ej övertid | E3: Semester, timmar | F3: Sjukskriven, timmar | G3: Övertid, timmar | H3: Övertid, tillägg | I3: Bruttolön | J3: Skatter och avdrag | K3: Andra avdrag | L3: Nettolön | N3: Timlön | O3: Skattestatus | P3: Skatteavdrag | Q3: Statlig skatt | R3: Kommunal skatt | S3: Sociala avgifter | T3: Egenavgifter | U3: Totalt avdragna skatter | V3: Avdrag, försäkring | W3: Andra standradavdrag | X3: Totalt standardavdrag
B4: 1001 | C4: Lars Svensson | D4: 50 | E4: 5 | F4: 1 | I4: =SUM(Anställda[[#This Row],[Arbetade timmar, ej övertid]:[Sjukskriven, timmar]])*Anställda[[#This Row],[Timlön]]+Anställda[[#This Row],[Övertid, timmar]]*Anställda[[#This Row],[Övertid, tillägg]] -> 560 | J4: =Anställda[[#This Row],[Bruttolön]]*Anställda[[#This Row],[Totalt avdragna skatter]] + Anställda[[#This Row],[Totalt standardavdrag]] -> 273.08 | K4: 20 | L4: =Anställda[[#This Row],[Bruttolön]]-Anställda[[#This Row],[Skatter och avdrag]]-Anställda[[#This Row],[Andra avdrag]] -> 266.92 | N4: 10 | O4: 1 | P4: 4 | Q4: 0.023 | R4: 0.28 | S4: 0.063 | T4: 0.0145 | U4: =SUM(Anställda[[#This Row],[Statlig skatt]:[Egenavgifter]]) -> 0.3805 | V4: 20 | W4: 40 | X4: =SUM(Anställda[[#This Row],[Avdrag, försäkring]:[Andra standradavdrag]]) -> 60
B5: 1002 | C5: Mikael Karlsson | D5: 40 | I5: =SUM(Anställda[[#This Row],[Arbetade timmar, ej övertid]:[Sjukskriven, timmar]])*Anställda[[#This Row],[Timlön]]+Anställda[[#This Row],[Övertid, timmar]]*Anställda[[#This Row],[Övertid, tillägg]] -> 320 | J5: =Anställda[[#This Row],[Bruttolön]]*Anställda[[#This Row],[Totalt avdragna skatter]] + Anställda[[#This Row],[Totalt standardavdrag]] -> 131.76 | L5: =Anställda[[#This Row],[Bruttolön]]-Anställda[[#This Row],[Skatter och avdrag]]-Anställda[[#This Row],[Andra avdrag]] -> 188.24 | N5: 8 | O5: 1 | P5: 1 | Q5: 0.023 | R5: 0.28 | S5: 0.063 | T5: 0.0145 | U5: =SUM(Anställda[[#This Row],[Statlig skatt]:[Egenavgifter]]) -> 0.3805 | V5: 0 | W5: 10 | X5: =SUM(Anställda[[#This Row],[Avdrag, försäkring]:[Andra standradavdrag]]) -> 10
B6: 1003 | C6: Lars Wester | D6: 35 | E6: 3 | I6: =SUM(Anställda[[#This Row],[Arbetade timmar, ej övertid]:[Sjukskriven, timmar]])*Anställda[[#This Row],[Timlön]]+Anställda[[#This Row],[Övertid, timmar]]*Anställda[[#This Row],[Övertid, tillägg]] -> 532 | J6: =Anställda[[#This Row],[Bruttolön]]*Anställda[[#This Row],[Totalt avdragna skatter]] + Anställda[[#This Row],[Totalt standardavdrag]] -> 240.426 | L6: =Anställda[[#This Row],[Bruttolön]]-Anställda[[#This Row],[Skatter och avdrag]]-Anställda[[#This Row],[Andra avdrag]] -> 291.574 | N6: 14 | O6: 1 | P6: 3 | Q6: 0.023 | R6: 0.28 | S6: 0.063 | T6: 0.0145 | U6: =SUM(Anställda[[#This Row],[Statlig skatt]:[Egenavgifter]]) -> 0.3805 | V6: 18 | W6: 20 | X6: =SUM(Anställda[[#This Row],[Avdrag, försäkring]:[Andra standradavdrag]]) -> 38
B7: 1008 | C7: Mats Brodin | D7: 50 | E7: 5 | F7: 1 | I7: =SUM(Anställda[[#This Row],[Arbetade timmar, ej övertid]:[Sjukskriven, timmar]])*Anställda[[#This Row],[Timlön]]+Anställda[[#This Row],[Övertid, timmar]]*Anställda[[#This Row],[Övertid, tillägg]] -> 1120 | J7: =Anställda[[#This Row],[Bruttolön]]*Anställda[[#This Row],[Totalt avdragna skatter]] + Anställda[[#This Row],[Totalt standardavdrag]] -> 441.16 | L7: =Anställda[[#This Row],[Bruttolön]]-Anställda[[#This Row],[Skatter och avdrag]]-Anställda[[#This Row],[Andra avdrag]] -> 678.84 | N7: 20 | O7: 1 | P7: 0 | Q7: 0.023 | R7: 0.28 | S7: 0.063 | T7: 0.0145 | U7: =SUM(Anställda[[#This Row],[Statlig skatt]:[Egenavgifter]]) -> 0.3805 | V7: 15 | X7: =SUM(Anställda[[#This Row],[Avdrag, försäkring]:[Andra standradavdrag]]) -> 15
B8: 1011 | C8: Erika Bergholm | D8: 40 | G8: 2 | H8: 15 | I8: =SUM(Anställda[[#This Row],[Arbetade timmar, ej övertid]:[Sjukskriven, timmar]])*Anställda[[#This Row],[Timlön]]+Anställda[[#This Row],[Övertid, timmar]]*Anställda[[#This Row],[Övertid, tillägg]] -> 430 | J8: =Anställda[[#This Row],[Bruttolön]]*Anställda[[#This Row],[Totalt avdragna skatter]] + Anställda[[#This Row],[Totalt standardavdrag]] -> 223.615 | L8: =Anställda[[#This Row],[Bruttolön]]-Anställda[[#This Row],[Skatter och avdrag]]-Anställda[[#This Row],[Andra avdrag]] -> 206.385 | N8: 10 | O8: 1 | P8: 0 | Q8: 0.023 | R8: 0.28 | S8: 0.063 | T8: 0.0145 | U8: =SUM(Anställda[[#This Row],[Statlig skatt]:[Egenavgifter]]) -> 0.3805 | V8: 20 | W8: 40 | X8: =SUM(Anställda[[#This Row],[Avdrag, försäkring]:[Andra standradavdrag]]) -> 60
B9: 1012 | C9: Daniel Franzén | D9: 40 | E9: 5 | F9: 1 | I9: =SUM(Anställda[[#This Row],[Arbetade timmar, ej övertid]:[Sjukskriven, timmar]])*Anställda[[#This Row],[Timlön]]+Anställda[[#This Row],[Övertid, timmar]]*Anställda[[#This Row],[Övertid, tillägg]] -> 552 | J9: =Anställda[[#This Row],[Bruttolön]]*Anställda[[#This Row],[Totalt avdragna skatter]] + Anställda[[#This Row],[Totalt standardavdrag]] -> 270.036 | L9: =Anställda[[#This Row],[Bruttolön]]-Anställda[[#This Row],[Skatter och avdrag]]-Anställda[[#This Row],[Andra avdrag]] -> 281.964 | N9: 12 | O9: 1 | P9: 4 | Q9: 0.023 | R9: 0.28 | S9: 0.063 | T9: 0.0145 | U9: =SUM(Anställda[[#This Row],[Statlig skatt]:[Egenavgifter]]) -> 0.3805 | V9: 20 | W9: 40 | X9: =SUM(Anställda[[#This Row],[Avdrag, försäkring]:[Andra standradavdrag]]) -> 60
B10: 1025 | C10: Lisbeth Dahl | D10: 36 | F10: 2 | G10: 1 | H10: 18 | I10: =SUM(Anställda[[#This Row],[Arbetade timmar, ej övertid]:[Sjukskriven, timmar]])*Anställda[[#This Row],[Timlön]]+Anställda[[#This Row],[Övertid, timmar]]*Anställda[[#This Row],[Övertid, tillägg]] -> 474 | J10: =Anställda[[#This Row],[Bruttolön]]*Anställda[[#This Row],[Totalt avdragna skatter]] + Anställda[[#This Row],[Totalt standardavdrag]] -> 225.357 | K10: 25 | L10: =Anställda[[#This Row],[Bruttolön]]-Anställda[[#This Row],[Skatter och avdrag]]-Anställda[[#This Row],[Andra avdrag]] -> 223.643 | N10: 12 | O10: 1 | P10: 2 | Q10: 0.023 | R10: 0.28 | S10: 0.063 | T10: 0.0145 | U10: =SUM(Anställda[[#This Row],[Statlig skatt]:[Egenavgifter]]) -> 0.3805 | V10: 25 | W10: 20 | X10: =SUM(Anställda[[#This Row],[Avdrag, försäkring]:[Andra standradavdrag]]) -> 45
B11: 1032 | C11: Lena Persson | D11: 40 | E11: 5 | F11: 1 | I11: =SUM(Anställda[[#This Row],[Arbetade timmar, ej övertid]:[Sjukskriven, timmar]])*Anställda[[#This Row],[Timlön]]+Anställda[[#This Row],[Övertid, timmar]]*Anställda[[#This Row],[Övertid, tillägg]] -> 460 | J11: =Anställda[[#This Row],[Bruttolön]]*Anställda[[#This Row],[Totalt avdragna skatter]] + Anställda[[#This Row],[Totalt standardavdrag]] -> 175.03 | K11: 50 | L11: =Anställda[[#This Row],[Bruttolön]]-Anställda[[#This Row],[Skatter och avdrag]]-Anställda[[#This Row],[Andra avdrag]] -> 234.97 | N11: 10 | O11: 1 | P11: 3 | Q11: 0.023 | R11: 0.28 | S11: 0.063 | T11: 0.0145 | U11: =SUM(Anställda[[#This Row],[Statlig skatt]:[Egenavgifter]]) -> 0.3805 | X11: =SUM(Anställda[[#This Row],[Avdrag, försäkring]:[Andra standradavdrag]]) -> 0
B12: 1049 | C12: Pär Johansson | D12: 40 | E12: 1 | I12: =SUM(Anställda[[#This Row],[Arbetade timmar, ej övertid]:[Sjukskriven, timmar]])*Anställda[[#This Row],[Timlön]]+Anställda[[#This Row],[Övertid, timmar]]*Anställda[[#This Row],[Övertid, tillägg]] -> 615 | J12: =Anställda[[#This Row],[Bruttolön]]*Anställda[[#This Row],[Totalt avdragna skatter]] + Anställda[[#This Row],[Totalt standardavdrag]] -> 259.0075 | K12: 23 | L12: =Anställda[[#This Row],[Bruttolön]]-Anställda[[#This Row],[Skatter och avdrag]]-Anställda[[#This Row],[Andra avdrag]] -> 332.9925 | N12: 15 | O12: 1 | P12: 2 | Q12: 0.023 | R12: 0.28 | S12: 0.063 | T12: 0.0145 | U12: =SUM(Anställda[[#This Row],[Statlig skatt]:[Egenavgifter]]) -> 0.3805 | V12: 25 | X12: =SUM(Anställda[[#This Row],[Avdrag, försäkring]:[Andra standradavdrag]]) -> 25
B13: Summa | C13: =SUBTOTAL(103,Anställda[Anställds namn]) -> 9 | D13: =SUBTOTAL(109,Anställda[Arbetade timmar, ej övertid]) -> 371 | E13: =SUBTOTAL(109,Anställda[Semester, timmar]) -> 24 | F13: =SUBTOTAL(109,Anställda[Sjukskriven, timmar]) -> 6 | G13: =SUBTOTAL(109,Anställda[Övertid, timmar]) -> 3 | I13: =SUBTOTAL(109,Anställda[Bruttolön]) -> 5063 | J13: =SUBTOTAL(109,Anställda[Skatter och avdrag]) -> 2239.4715 | K13: =SUBTOTAL(109,Anställda[Andra avdrag]) -> 118 | L13: =SUBTOTAL(109,Anställda[Nettolön]) -> 2705.5285 | V13: =SUBTOTAL(109,Anställda[Avdrag, försäkring]) -> 143 | W13: =SUBTOTAL(109,Anställda[Andra standradavdrag]) -> 170 | X13: =SUBTOTAL(109,Anställda[Totalt standardavdrag]) -> 313

Sheet spec_mall (hidden)
C2: =Företagsnamn -> ADVENTURE WORKS
C3: PERIOD | D3: =PeriodSlutar -> 41372 | G3: NAMN | H3: =IFERROR(INDEX(Anställda[Anställds namn],Spec1),"") -> Lars Svensson | K3: ANSTÄLLNINGSNR | L3: =IFERROR(INDEX(Anställda[ID],Spec1),"") -> 1001
C4: Skattestatus | E4: =IFERROR(INDEX(Anställda[Skattestatus],Spec1),"") -> 1 | G4: Skatteavdrag (från W-4 (USA)) | I4: =IFERROR(INDEX(Anställda[Skatteavdrag],Spec1),"") -> 4 | K4: Arbetade timmar | M4: =IFERROR(INDEX(Anställda[Arbetade timmar, ej övertid],Spec1),"") -> 50
C5: Timlön | E5: =IFERROR(INDEX(Anställda[Timlön],Spec1),"") -> 10 | G5: Övertid, tillägg | I5: =IFERROR(INDEX(Anställda[Övertid, tillägg],Spec1),"") -> 0 | K5: Sjukskriven, timmar | M5: =IFERROR(INDEX(Anställda[Sjukskriven, timmar],Spec1),"") -> 1
C6: Sociala avgifter | E6: =IFERROR(INDEX(Anställda[Sociala avgifter],Spec1) * INDEX(Anställda[Bruttolön],Spec1),"") -> 35.28 | G6: Kommunal skatt | I6: =IFERROR(INDEX(Anställda[Kommunal skatt],Spec1) * INDEX(Anställda[Bruttolön],Spec1),"") -> 156.8 | K6: Semester, timmar | M6: =IFERROR(INDEX(Anställda[Semester, timmar],Spec1),"") -> 5
C7: Egenavgifter | E7: =IFERROR(INDEX(Anställda[Egenavgifter],Spec1) * INDEX(Anställda[Bruttolön],Spec1),"") -> 8.12 | G7: Statlig skatt | I7: =IFERROR(INDEX(Anställda[Statlig skatt],Spec1) * INDEX(Anställda[Bruttolön],Spec1),"") -> 12.88 | K7: Övertid, timmar | M7: =IFERROR(INDEX(Anställda[Övertid, timmar],Spec1),"") -> 0
C8: Avdrag, försäkring | E8: =IFERROR(INDEX(Anställda[Avdrag, försäkring],Spec1),"") -> 20 | G8: Andra standardavdrag | I8: =IFERROR(INDEX(Anställda[Andra standradavdrag],Spec1),"") -> 40 | K8: Bruttolön | M8: =IFERROR(INDEX(Anställda[Bruttolön],Spec1),"") -> 560
C9: Totalt skatter och | E9: =IFERROR(INDEX(Anställda[Skatter och avdrag],Spec1),"") -> 273.08 | G9: Andra avdrag | I9: =IFERROR(INDEX(Anställda[Andra avdrag],Spec1),"") -> 20 | K9: Totalt skatter och avdrag | M9: =IFERROR(INDEX(Anställda[Skatter och avdrag],Spec1) + INDEX(Anställda[Andra avdrag],Spec1),"") -> 293.08
C10: standardavdrag
K11: NETTOLÖN | M11: =IFERROR(INDEX(Anställda[Nettolön],Spec1),"") -> 266.92
C14: =Företagsnamn -> ADVENTURE WORKS
C15: PERIOD | D15: =PeriodSlutar -> 41372 | G15: NAMN | H15: =IFERROR(INDEX(Anställda[Anställds namn],Spec1),"") -> Mikael Karlsson | K15: ANSTÄLLNINGSNR | L15: =IFERROR(INDEX(Anställda[ID],Spec1),"") -> 1002
C16: Skattestatus | E16: =IFERROR(INDEX(Anställda[Skattestatus],Spec1),"") -> 1 | G16: Skatteavdrag (från W-4 (USA)) | I16: =IFERROR(INDEX(Anställda[Skatteavdrag],Spec1),"") -> 1 | K16: Arbetade timmar | M16: =IFERROR(INDEX(Anställda[Arbetade timmar, ej övertid],Spec1),"") -> 40
C17: Timlön | E17: =IFERROR(INDEX(Anställda[Timlön],Spec1),"") -> 8 | G17: Övertid, tillägg | I17: =IFERROR(INDEX(Anställda[Övertid, tillägg],Spec1),"") -> 0 | K17: Sjukskriven, timmar | M17: =IFERROR(INDEX(Anställda[Sjukskriven, timmar],Spec1),"") -> 0
C18: Sociala avgifter | E18: =IFERROR(INDEX(Anställda[Sociala avgifter],Spec1) * INDEX(Anställda[Bruttolön],Spec1),"") -> 20.16 | G18: Kommunal skatt | I18: =IFERROR(INDEX(Anställda[Kommunal skatt],Spec1) * INDEX(Anställda[Bruttolön],Spec1),"") -> 89.6 | K18: Semester, timmar | M18: =IFERROR(INDEX(Anställda[Semester, timmar],Spec1),"") -> 0
C19: Egenavgifter | E19: =IFERROR(INDEX(Anställda[Egenavgifter],Spec1) * INDEX(Anställda[Bruttolön],Spec1),"") -> 4.64 | G19: Statlig skatt | I19: =IFERROR(INDEX(Anställda[Statlig skatt],Spec1) * INDEX(Anställda[Bruttolön],Spec1),"") -> 7.36 | K19: Övertid, timmar | M19: =IFERROR(INDEX(Anställda[Övertid, timmar],Spec1),"") -> 0
C20: Avdrag, försäkring | E20: =IFERROR(INDEX(Anställda[Avdrag, försäkring],Spec1),"") -> 0 | G20: Andra standardavdrag | I20: =IFERROR(INDEX(Anställda[Andra standradavdrag],Spec1),"") -> 10 | K20: Bruttolön | M20: =IFERROR(INDEX(Anställda[Bruttolön],Spec1),"") -> 320
C21: Totalt skatter och | E21: =IFERROR(INDEX(Anställda[Skatter och avdrag],Spec1),"") -> 131.76 | G21: Andra avdrag | I21: =IFERROR(INDEX(Anställda[Andra avdrag],Spec1),"") -> 0 | K21: Totalt skatter och avdrag | M21: =IFERROR(INDEX(Anställda[Skatter och avdrag],Spec1) + INDEX(Anställda[Andra avdrag],Spec1),"") -> 131.76
C22: standardavdrag
K23: NETTOLÖN | M23: =IFERROR(INDEX(Anställda[Nettolön],Spec1),"") -> 188.24
C26: =Företagsnamn -> ADVENTURE WORKS
C27: PEROID | D27: =PeriodSlutar -> 41372 | G27: NAMN | H27: =IFERROR(INDEX(Anställda[Anställds namn],Spec1),"") -> Lars Wester | K27: ANSTÄLLNINGSNR | L27: =IFERROR(INDEX(Anställda[ID],Spec1),"") -> 1003
C28: Skattestatus | E28: =IFERROR(INDEX(Anställda[Skattestatus],Spec1),"") -> 1 | G28: Skatteavdrag (från W-4 (USA)) | I28: =IFERROR(INDEX(Anställda[Skatteavdrag],Spec1),"") -> 3 | K28: Arbetade timmar | M28: =IFERROR(INDEX(Anställda[Arbetade timmar, ej övertid],Spec1),"") -> 35
C29: Timlön | E29: =IFERROR(INDEX(Anställda[Timlön],Spec1),"") -> 14 | G29: Övertid, tillägg | I29: =IFERROR(INDEX(Anställda[Övertid, tillägg],Spec1),"") -> 0 | K29: Sjukskriven, timmar | M29: =IFERROR(INDEX(Anställda[Sjukskriven, timmar],Spec1),"") -> 0
C30: Sociala avgifter | E30: =IFERROR(INDEX(Anställda[Sociala avgifter],Spec1) * INDEX(Anställda[Bruttolön],Spec1),"") -> 33.516 | G30: Kommunal skatt | I30: =IFERROR(INDEX(Anställda[Kommunal skatt],Spec1) * INDEX(Anställda[Bruttolön],Spec1),"") -> 148.96 | K30: Semester, timmar | M30: =IFERROR(INDEX(Anställda[Semester, timmar],Spec1),"") -> 3
C31: Egenavgifter | E31: =IFERROR(INDEX(Anställda[Egenavgifter],Spec1) * INDEX(Anställda[Bruttolön],Spec1),"") -> 7.714 | G31: Statlig skatt | I31: =IFERROR(INDEX(Anställda[Statlig skatt],Spec1) * INDEX(Anställda[Bruttolön],Spec1),"") -> 12.236 | K31: Övertid, timmar | M31: =IFERROR(INDEX(Anställda[Övertid, timmar],Spec1),"") -> 0
C32: Avdrag, försäkring | E32: =IFERROR(INDEX(Anställda[Avdrag, försäkring],Spec1),"") -> 18 | G32: Andra standardavdrag | I32: =IFERROR(INDEX(Anställda[Andra standradavdrag],Spec1),"") -> 20 | K32: Bruttolön | M32: =IFERROR(INDEX(Anställda[Bruttolön],Spec1),"") -> 532
C33: Totalt skatter och | E33: =IFERROR(INDEX(Anställda[Skatter och avdrag],Spec1),"") -> 240.426 | G33: Andra avdrag | I33: =IFERROR(INDEX(Anställda[Andra avdrag],Spec1),"") -> 0 | K33: Totalt skatter och avdrag | M33: =IFERROR(INDEX(Anställda[Skatter och avdrag],Spec1) + INDEX(Anställda[Andra avdrag],Spec1),"") -> 240.426
C34: standardavdrag
K35: NETTOLÖN | M35: =IFERROR(INDEX(Anställda[Nettolön],Spec1),"") -> 291.574
C38: =Företagsnamn -> ADVENTURE WORKS
C39: PERIOD | D39: =PeriodSlutar -> 41372 | G39: NAMN | H39: =IFERROR(INDEX(Anställda[Anställds namn],Spec1),"") -> Mats Brodin | K39: ANSTÄLLNINGSNR | L39: =IFERROR(INDEX(Anställda[ID],Spec1),"") -> 1008
C40: Skattestatus | E40: =IFERROR(INDEX(Anställda[Skattestatus],Spec1),"") -> 1 | G40: Skatteavdrag (från W-4 (USA)) | I40: =IFERROR(INDEX(Anställda[Skatteavdrag],Spec1),"") -> 0 | K40: Arbetade timmar | M40: =IFERROR(INDEX(Anställda[Arbetade timmar, ej övertid],Spec1),"") -> 50
C41: Timlön | E41: =IFERROR(INDEX(Anställda[Timlön],Spec1),"") -> 20 | G41: Övertid, tillägg | I41: =IFERROR(INDEX(Anställda[Övertid, tillägg],Spec1),"") -> 0 | K41: Sjukskriven, timmar | M41: =IFERROR(INDEX(Anställda[Sjukskriven, timmar],Spec1),"") -> 1
C42: Sociala avgifter | E42: =IFERROR(INDEX(Anställda[Sociala avgifter],Spec1) * INDEX(Anställda[Bruttolön],Spec1),"") -> 70.56 | G42: Kommunal skatt | I42: =IFERROR(INDEX(Anställda[Kommunal skatt],Spec1) * INDEX(Anställda[Bruttolön],Spec1),"") -> 313.6 | K42: Semester, timmar | M42: =IFERROR(INDEX(Anställda[Semester, timmar],Spec1),"") -> 5
C43: Egenavgifter | E43: =IFERROR(INDEX(Anställda[Egenavgifter],Spec1) * INDEX(Anställda[Bruttolön],Spec1),"") -> 16.24 | G43: Statlig skatt | I43: =IFERROR(INDEX(Anställda[Statlig skatt],Spec1) * INDEX(Anställda[Bruttolön],Spec1),"") -> 25.76 | K43: Övertid, timmar | M43: =IFERROR(INDEX(Anställda[Övertid, timmar],Spec1),"") -> 0
C44: Avdrag, försäkring | E44: =IFERROR(INDEX(Anställda[Avdrag, försäkring],Spec1),"") -> 15 | G44: Andra standardavdrag | I44: =IFERROR(INDEX(Anställda[Andra standradavdrag],Spec1),"") -> 0 | K44: Bruttolön | M44: =IFERROR(INDEX(Anställda[Bruttolön],Spec1),"") -> 1120
C45: Totalt skatter och | E45: =IFERROR(INDEX(Anställda[Skatter och avdrag],Spec1),"") -> 441.16 | G45: Andra avdrag | I45: =IFERROR(INDEX(Anställda[Andra avdrag],Spec1),"") -> 0 | K45: Totalt skatter och avdrag | M45: =IFERROR(INDEX(Anställda[Skatter och avdrag],Spec1) + INDEX(Anställda[Andra avdrag],Spec1),"") -> 441.16
C46: standardavdrag
K47: NETTOLÖN | M47: =IFERROR(INDEX(Anställda[Nettolön],Spec1),"") -> 678.84
